[Event "Live Chess"]
[Site "Chess.com"]
[Date "2024.06.02"]
[Round "-"]
[White "ACM42"]
[Black "MagnersCarlsberg2870"]
[Result "1-0"]
[WhiteElo "2161"]
[BlackElo "1770"]
[TimeControl "300"]
[EndTime "17:34:08 PDT"]
[Termination "ACM42 won by checkmate"]

1. e4 {[%clk 0:04:57.8]} 1... d5 {[%clk 0:04:57.1]} 2. exd5 {[%clk 0:04:55.4]}
2... Nf6 {[%clk 0:04:56.3]} 3. d4 {[%clk 0:04:53.9]} 3... Qxd5 {[%clk
0:04:54.7]} 4. c4 {[%clk 0:04:52.9]} 4... Qe4+ {[%clk 0:04:50.7]} 5. Be3 {[%clk
0:04:45.8]} 5... e5 {[%clk 0:04:49.4]} 6. Nc3 {[%clk 0:04:43.7]} 6... Bb4 {[%clk
0:04:47.8]} 7. Qa4+ {[%clk 0:04:16.7]} 7... Nc6 {[%clk 0:04:45.1]} 8. d5 {[%clk
0:04:15.7]} 8... Bxc3+ {[%clk 0:04:35.8]} 9. bxc3 {[%clk 0:04:11.5]} 9... Bd7
{[%clk 0:04:32.1]} 10. dxc6 {[%clk 0:04:08.5]} 10... Bxc6 {[%clk 0:04:31.3]} 11.
Qd1 {[%clk 0:03:50.4]} 11... Rd8 {[%clk 0:04:28.8]} 12. Qb1 {[%clk 0:03:48.9]}
12... Qg4 {[%clk 0:04:21.5]} 13. h3 {[%clk 0:03:43.2]} 13... Qd7 {[%clk
0:04:07.3]} 14. Nf3 {[%clk 0:03:37]} 14... Bxf3 {[%clk 0:03:56]} 15. g3 {[%clk
0:03:35.5]} 15... Bxh1 {[%clk 0:03:54.2]} 16. Be2 {[%clk 0:03:34]} 16... Be4
{[%clk 0:03:45.5]} 17. Qb5 {[%clk 0:03:24.5]} 17... Qxb5 {[%clk 0:03:37.8]} 18.
cxb5 {[%clk 0:03:23.6]} 18... Bd3 {[%clk 0:03:34.7]} 19. Bxa7 {[%clk 0:03:21]}
19... Bxe2 {[%clk 0:03:32.3]} 20. Kxe2 {[%clk 0:03:20.9]} 20... O-O {[%clk
0:03:27.3]} 21. Bc5 {[%clk 0:03:17.2]} 21... Rfe8 {[%clk 0:03:25.4]} 22. a4
{[%clk 0:03:16.4]} 22... Nd5 {[%clk 0:03:24.1]} 23. c4 {[%clk 0:03:13]} 23...
Nb6 {[%clk 0:03:19.5]} 24. a5 {[%clk 0:03:07.1]} 24... Nxc4 {[%clk 0:03:17.9]}
25. a6 {[%clk 0:03:06.1]} 25... bxa6 {[%clk 0:03:14.1]} 26. bxa6 {[%clk
0:03:04.9]} 26... Ra8 {[%clk 0:03:10.6]} 27. a7 {[%clk 0:03:03.3]} 27... Nb6
{[%clk 0:03:02.5]} 28. Ra6 {[%clk 0:02:56]} 28... Re6 {[%clk 0:02:49.9]} 29. g4
{[%clk 0:02:48.4]} 29... Nc8 {[%clk 0:02:43.6]} 30. Ra5 {[%clk 0:02:44.4]} 30...
Rc6 {[%clk 0:02:38]} 31. Be3 {[%clk 0:02:42.9]} 31... f6 {[%clk 0:02:35.6]} 32.
Rd5 {[%clk 0:02:40]} 32... Rd6 {[%clk 0:02:29.7]} 33. Rb5 {[%clk 0:02:35.6]}
33... Nxa7 {[%clk 0:02:26.8]} 34. Ra5 {[%clk 0:02:34.3]} 34... c5 {[%clk
0:02:24]} 35. Bxc5 {[%clk 0:02:31.1]} 35... Rd7 {[%clk 0:02:22.7]} 36. Ra6
{[%clk 0:02:29]} 36... Kf7 {[%clk 0:02:17.5]} 37. Ke3 {[%clk 0:02:27.1]} 37...
Ke8 {[%clk 0:02:16.6]} 38. h4 {[%clk 0:02:19.1]} 38... Kd8 {[%clk 0:02:14.6]}
39. g5 {[%clk 0:02:10.8]} 39... f5 {[%clk 0:02:10.7]} 40. h5 {[%clk 0:02:09.1]}
40... Kc8 {[%clk 0:02:09.7]} 41. h6 {[%clk 0:01:38.4]} 41... g6 {[%clk
0:02:05.2]} 42. Bf8 {[%clk 0:01:34.4]} 42... Kb7 {[%clk 0:02:03]} 43. Rf6 {[%clk
0:01:32.4]} 43... Nc6 {[%clk 0:01:55.4]} 44. Bg7 {[%clk 0:01:27.6]} 44... Ra3+
{[%clk 0:01:53.9]} 45. Ke2 {[%clk 0:01:26.4]} 45... Nd4+ {[%clk 0:01:51.4]} 46.
Kf1 {[%clk 0:01:25.4]} 46... Ra1+ {[%clk 0:01:47.7]} 47. Kg2 {[%clk 0:01:24.5]}
47... Rd8 {[%clk 0:01:37.7]} 48. Rf7+ {[%clk 0:01:21.8]} 48... Kc6 {[%clk
0:01:35.4]} 49. Bxe5 {[%clk 0:01:21]} 49... Ra4 {[%clk 0:01:22.6]} 50. Rc7+
{[%clk 0:01:19.1]} 50... Kb6 {[%clk 0:01:18.3]} 51. Rxh7 {[%clk 0:01:16.6]}
51... Ne6 {[%clk 0:01:14.6]} 52. Re7 {[%clk 0:01:13.5]} 52... Nxg5 {[%clk
0:01:11.5]} 53. Bc7+ {[%clk 0:01:11.4]} 53... Kc5 {[%clk 0:01:05.8]} 54. Bxd8
{[%clk 0:01:10.7]} 54... Rg4+ {[%clk 0:01:04.4]} 55. Kf1 {[%clk 0:01:07.5]}
55... Kd6 {[%clk 0:00:54.8]} 56. Re3 {[%clk 0:00:54.4]} 56... Nh7 {[%clk
0:00:49.7]} 57. Re7 {[%clk 0:00:49.1]} 57... Ng5 {[%clk 0:00:42.9]} 58. Rg7
{[%clk 0:00:48]} 58... Ne6 {[%clk 0:00:33.9]} 59. h7 {[%clk 0:00:43.1]} 59...
Nxg7 {[%clk 0:00:23.3]} 60. h8=Q {[%clk 0:00:41.6]} 60... Ne6 {[%clk 0:00:21.6]}
61. Bf6 {[%clk 0:00:35.1]} 61... f4 {[%clk 0:00:16.9]} 62. Qb8+ {[%clk
0:00:33.5]} 62... Kd5 {[%clk 0:00:15.3]} 63. Qb5+ {[%clk 0:00:31]} 63... Ke4
{[%clk 0:00:13.2]} 64. f3+ {[%clk 0:00:25.7]} 64... Kxf3 {[%clk 0:00:11.1]} 65.
Qe2+ {[%clk 0:00:25]} 65... Kg3 {[%clk 0:00:09.1]} 66. Qg2# {[%clk 0:00:24.4]}
1-0

[Event "Live Chess"]
[Site "Chess.com"]
[Date "2024.06.02"]
[Round "-"]
[White "RockTroll"]
[Black "ShanthamGrarks"]
[Result "1-0"]
[WhiteElo "2206"]
[BlackElo "1849"]
[TimeControl "300"]
[EndTime "17:34:29 PDT"]
[Termination "RockTroll won by resignation"]

1. e4 {[%clk 0:04:57.2]} 1... e6 {[%clk 0:04:55.8]} 2. d4 {[%clk 0:04:55.9]}
2... d5 {[%clk 0:04:55]} 3. e5 {[%clk 0:04:55.2]} 3... c5 {[%clk 0:04:52.2]} 4.
c3 {[%clk 0:04:54.8]} 4... Nc6 {[%clk 0:04:51.8]} 5. Nf3 {[%clk 0:04:54.3]} 5...
cxd4 {[%clk 0:04:51.5]} 6. cxd4 {[%clk 0:04:51.3]} 6... Qb6 {[%clk 0:04:51]} 7.
Nc3 {[%clk 0:04:46.4]} 7... Nge7 {[%clk 0:04:48.7]} 8. Be2 {[%clk 0:04:42]} 8...
Ng6 {[%clk 0:04:46.6]} 9. h4 {[%clk 0:04:36.7]} 9... h5 {[%clk 0:04:43.1]} 10.
Rb1 {[%clk 0:04:30.8]} 10... Be7 {[%clk 0:04:39.5]} 11. Bg5 {[%clk 0:04:28.8]}
11... Bxg5 {[%clk 0:04:37.2]} 12. hxg5 {[%clk 0:04:26.8]} 12... h4 {[%clk
0:04:31.8]} 13. Bd3 {[%clk 0:04:22.3]} 13... Nf4 {[%clk 0:04:29.1]} 14. Kf1
{[%clk 0:04:14.9]} 14... h3 {[%clk 0:04:27.2]} 15. gxh3 {[%clk 0:04:08.8]} 15...
Rxh3 {[%clk 0:04:18.4]} 16. Rxh3 {[%clk 0:04:07.6]} 16... Nxh3 {[%clk
0:04:17.7]} 17. Kg2 {[%clk 0:04:05]} 17... Nf4+ {[%clk 0:04:16.2]} 18. Kg3
{[%clk 0:04:04.6]} 18... Nxd3 {[%clk 0:04:14.8]} 19. Qxd3 {[%clk 0:04:04]} 19...
g6 {[%clk 0:04:12.3]} 20. Rh1 {[%clk 0:04:02.2]} 20... Ke7 {[%clk 0:04:02.4]}
21. Rh8 {[%clk 0:03:59.8]} 21... a6 {[%clk 0:03:51.6]} 22. Qd2 {[%clk 0:03:56]}
22... Qc7 {[%clk 0:03:17.4]} 23. Qf4 {[%clk 0:03:51.6]} 23... Nd8 {[%clk
0:03:12.3]} 24. Qf6+ {[%clk 0:03:50.1]} 24... Kd7 {[%clk 0:03:11.4]} 25. Nh4
{[%clk 0:02:49]} 25... b6 {[%clk 0:03:06.4]} 26. f4 {[%clk 0:02:45]} 26... Bb7
{[%clk 0:03:02.2]} 27. f5 {[%clk 0:02:26.6]} 27... gxf5 {[%clk 0:02:58.7]} 28.
g6 {[%clk 0:02:25.6]} 28... Qc4 {[%clk 0:02:56.6]} 29. g7 {[%clk 0:02:17.6]}
29... Qd3+ {[%clk 0:02:55.1]} 30. Nf3 {[%clk 0:02:15.8]} 30... Nc6 {[%clk
0:02:43.4]} 31. Rxa8 {[%clk 0:02:12]} 31... Nxd4 {[%clk 0:02:41.4]} 32. Qxf7+
{[%clk 0:02:09.3]} 32... Kc6 {[%clk 0:02:40.8]} 33. Qh5 {[%clk 0:02:03.4]} 33...
f4+ {[%clk 0:02:29.6]} 34. Kxf4 {[%clk 0:01:57.6]} 34... Nxf3 {[%clk 0:02:17.9]}
35. Qxf3 {[%clk 0:01:53.8]} 35... Qf5+ {[%clk 0:02:16.3]} 36. Ke3 {[%clk
0:01:48.6]} 36... Qxe5+ {[%clk 0:02:15.1]} 37. Kd2 {[%clk 0:01:45.5]} 37... Qxg7
{[%clk 0:02:13]} 38. Rf8 {[%clk 0:01:41.5]} 38... Qh6+ {[%clk 0:02:09.6]} 39.
Kc2 {[%clk 0:01:39.3]} 39... Qh2+ {[%clk 0:01:58.4]} 40. Qf2 {[%clk 0:01:34.9]}
40... Qd6 {[%clk 0:01:57.2]} 41. Rf6 {[%clk 0:01:23.9]} 41... Bc8 {[%clk
0:01:54.8]} 42. Qe2 {[%clk 0:01:16.9]} 42... b5 {[%clk 0:01:51.2]} 43. Kb1
{[%clk 0:01:13.2]} 43... Bd7 {[%clk 0:01:46.8]} 44. Qc2 {[%clk 0:01:05.7]} 44...
Kb6 {[%clk 0:01:43.1]} 45. Qd3 {[%clk 0:01:01.5]} 45... Qe5 {[%clk 0:01:40.8]}
46. Nxd5+ {[%clk 0:00:58.8]} 46... Kb7 {[%clk 0:01:34.6]} 47. Rf7 {[%clk
0:00:57]} 47... exd5 {[%clk 0:01:16]} 48. Rxd7+ {[%clk 0:00:54.3]} 48... Kc6
{[%clk 0:01:15.6]} 49. Rh7 {[%clk 0:00:49.5]} 49... Qe1+ {[%clk 0:01:13.6]} 50.
Kc2 {[%clk 0:00:48.9]} 50... Qf2+ {[%clk 0:01:13.1]} 51. Kb3 {[%clk 0:00:48.2]}
51... a5 {[%clk 0:01:07.2]} 52. Qc3+ {[%clk 0:00:46.8]} 52... Kd6 {[%clk
0:01:05.1]} 53. Qc7+ {[%clk 0:00:45]} 53... Ke6 {[%clk 0:01:04.3]} 54. Qd7+
{[%clk 0:00:44.1]} 54... Ke5 {[%clk 0:01:02.8]} 55. Re7+ {[%clk 0:00:42.4]}
55... Kd4 {[%clk 0:01:01.6]} 56. Qa7+ {[%clk 0:00:41.3]} 1-0

[Event "Live Chess"]
[Site "Chess.com"]
[Date "2024.06.02"]
[Round "-"]
[White "booktrunk"]
[Black "e4evr"]
[Result "0-1"]
[WhiteElo "1500"]
[BlackElo "2274"]
[TimeControl "300"]
[EndTime "17:35:20 PDT"]
[Termination "e4evr won by resignation"]

1. d4 {[%clk 0:04:51.6]} 1... e5 {[%clk 0:04:58.7]} 2. dxe5 {[%clk 0:04:49.1]}
2... Nc6 {[%clk 0:04:58.3]} 3. Nc3 {[%clk 0:04:45.6]} 3... Nxe5 {[%clk
0:04:56.8]} 4. Bf4 {[%clk 0:04:44.4]} 4... Ng6 {[%clk 0:04:55.5]} 5. Bg3 {[%clk
0:04:42.7]} 5... Bb4 {[%clk 0:04:54.9]} 6. Qd4 {[%clk 0:04:39.9]} 6... Bxc3+
{[%clk 0:04:54]} 7. Qxc3 {[%clk 0:04:38.5]} 7... Qf6 {[%clk 0:04:52.1]} 8. Qxf6
{[%clk 0:04:36.6]} 8... Nxf6 {[%clk 0:04:52]} 9. O-O-O {[%clk 0:04:34.6]} 9...
d6 {[%clk 0:04:51.2]} 10. e3 {[%clk 0:04:26]} 10... Be6 {[%clk 0:04:50]} 11. Nf3
{[%clk 0:04:17.6]} 11... a5 {[%clk 0:04:48.3]} 12. a3 {[%clk 0:04:15.3]} 12...
Ke7 {[%clk 0:04:45.1]} 13. Nd4 {[%clk 0:04:14.2]} 13... Ne4 {[%clk 0:04:41.9]}
14. Nxe6 {[%clk 0:04:10.4]} 14... fxe6 {[%clk 0:04:40.9]} 15. f3 {[%clk
0:04:05.5]} 15... Nxg3 {[%clk 0:04:39.7]} 16. hxg3 {[%clk 0:04:03.8]} 16... a4
{[%clk 0:04:33.9]} 17. Bd3 {[%clk 0:04:02.8]} 17... Ne5 {[%clk 0:04:31.6]} 18.
Be4 {[%clk 0:03:47.6]} 18... d5 {[%clk 0:04:22.1]} 19. Bd3 {[%clk 0:03:36.1]}
19... Nxd3+ {[%clk 0:04:20]} 20. Rxd3 {[%clk 0:03:34.2]} 20... h6 {[%clk
0:04:14.6]} 21. Rh4 {[%clk 0:03:31.6]} 21... b5 {[%clk 0:04:12.3]} 22. Rb4
{[%clk 0:03:29.9]} 22... Rab8 {[%clk 0:04:09.7]} 23. e4 {[%clk 0:03:25.8]} 23...
c5 {[%clk 0:04:08.1]} 24. Rxb5 {[%clk 0:03:18.9]} 24... Rxb5 {[%clk 0:04:07]}
25. exd5 {[%clk 0:03:18.6]} 25... Rd8 {[%clk 0:04:04.8]} 26. c4 {[%clk
0:03:14.9]} 26... Rb3 {[%clk 0:04:04]} 27. Rd2 {[%clk 0:03:11]} 27... exd5
{[%clk 0:04:02.7]} 28. cxd5 {[%clk 0:03:09.3]} 28... Re3 {[%clk 0:04:01.7]} 29.
Kc2 {[%clk 0:03:07.2]} 29... Kd6 {[%clk 0:04:00.5]} 30. Kd1 {[%clk 0:03:01.3]}
30... Rde8 {[%clk 0:03:57.9]} 0-1

[Event "Live Chess"]
[Site "Chess.com"]
[Date "2024.06.02"]
[Round "-"]
[White "Tushinskiy"]
[Black "StoreySniper"]
[Result "0-1"]
[WhiteElo "2231"]
[BlackElo "2538"]
[TimeControl "300"]
[EndTime "17:36:23 PDT"]
[Termination "StoreySniper won by checkmate"]

1. d4 {[%clk 0:04:52.9]} 1... g6 {[%clk 0:04:59.2]} 2. c3 {[%clk 0:04:52.8]}
2... Bg7 {[%clk 0:04:57.5]} 3. Nf3 {[%clk 0:04:52.7]} 3... d6 {[%clk 0:04:55.6]}
4. Bg5 {[%clk 0:04:48.4]} 4... Nd7 {[%clk 0:04:54.9]} 5. Nbd2 {[%clk 0:04:46.8]}
5... h6 {[%clk 0:04:53.8]} 6. Bh4 {[%clk 0:04:41.3]} 6... Ngf6 {[%clk
0:04:53.4]} 7. e4 {[%clk 0:04:40.1]} 7... g5 {[%clk 0:04:52.6]} 8. Bg3 {[%clk
0:04:36.4]} 8... Nh5 {[%clk 0:04:52.2]} 9. Bd3 {[%clk 0:04:35.5]} 9... Nxg3
{[%clk 0:04:49.2]} 10. hxg3 {[%clk 0:04:35.4]} 10... e5 {[%clk 0:04:48.4]} 11.
dxe5 {[%clk 0:04:33.7]} 11... dxe5 {[%clk 0:04:46.3]} 12. Qe2 {[%clk 0:04:32.4]}
12... O-O {[%clk 0:04:41.7]} 13. Nc4 {[%clk 0:04:20.7]} 13... Qe7 {[%clk
0:04:34.9]} 14. Ne3 {[%clk 0:04:16.7]} 14... Nc5 {[%clk 0:04:34.1]} 15. Bc2
{[%clk 0:04:15.4]} 15... Be6 {[%clk 0:04:23.7]} 16. g4 {[%clk 0:04:08.3]} 16...
Rfd8 {[%clk 0:04:20.3]} 17. Nf5 {[%clk 0:04:07.4]} 17... Bxf5 {[%clk 0:04:19]}
18. gxf5 {[%clk 0:04:06.5]} 18... Rd6 {[%clk 0:04:09.4]} 19. b4 {[%clk
0:03:59.6]} 19... Nd7 {[%clk 0:04:03]} 20. O-O {[%clk 0:03:57.1]} 20... Nf6
{[%clk 0:03:58.7]} 21. Nd2 {[%clk 0:03:51.5]} 21... Nh5 {[%clk 0:03:45.7]} 22.
Nc4 {[%clk 0:03:48.1]} 22... Nf4 {[%clk 0:03:43.3]} 23. Qf3 {[%clk 0:03:46.3]}
23... Rc6 {[%clk 0:03:39.3]} 24. Bb3 {[%clk 0:03:44.7]} 24... Bf6 {[%clk
0:03:28.3]} 25. g3 {[%clk 0:03:41.3]} 25... Kh7 {[%clk 0:03:17.3]} 26. Rad1
{[%clk 0:03:27]} 26... Rg8 {[%clk 0:03:13.4]} 27. b5 {[%clk 0:03:19.1]} 27...
Rc5 {[%clk 0:02:59.7]} 28. a4 {[%clk 0:03:11.3]} 28... g4 {[%clk 0:02:56.1]} 29.
Qe3 {[%clk 0:03:09.8]} 29... Bg5 {[%clk 0:02:44.2]} 30. Kh1 {[%clk 0:02:55.8]}
30... h5 {[%clk 0:02:25.8]} 31. Rd7 {[%clk 0:02:36.7]} 31... Qxd7 {[%clk
0:02:19]} 32. gxf4 {[%clk 0:02:32.8]} 32... Bxf4 {[%clk 0:02:08.5]} 33. Qxc5
{[%clk 0:02:30.4]} 33... Qd3 {[%clk 0:01:58.3]} 34. Rd1 {[%clk 0:02:24.6]} 34...
Qh3+ {[%clk 0:01:52.2]} 35. Kg1 {[%clk 0:02:23.6]} 35... Bh2+ {[%clk 0:01:50.1]}
36. Kh1 {[%clk 0:02:21.1]} 36... g3 {[%clk 0:01:35]} 37. fxg3 {[%clk 0:02:18.7]}
37... Bxg3+ {[%clk 0:01:33.5]} 38. Kg1 {[%clk 0:02:16.9]} 38... Be1# {[%clk
0:01:23.8]} 0-1

[Event "Live Chess"]
[Site "Chess.com"]
[Date "2024.06.02"]
[Round "-"]
[White "Duke_of_Bebington"]
[Black "lyricalschemes"]
[Result "0-1"]
[WhiteElo "1617"]
[BlackElo "2264"]
[TimeControl "300"]
[EndTime "17:36:31 PDT"]
[Termination "lyricalschemes won by resignation"]

1. e4 {[%clk 0:04:58.2]} 1... Nf6 {[%clk 0:04:57.6]} 2. e5 {[%clk 0:04:56.8]}
2... Nd5 {[%clk 0:04:56]} 3. c4 {[%clk 0:04:56.4]} 3... Nb6 {[%clk 0:04:54.9]}
4. d4 {[%clk 0:04:56.1]} 4... d6 {[%clk 0:04:54]} 5. f4 {[%clk 0:04:54.3]} 5...
dxe5 {[%clk 0:04:53.4]} 6. fxe5 {[%clk 0:04:53.2]} 6... Nc6 {[%clk 0:04:53.1]}
7. Nf3 {[%clk 0:04:51.8]} 7... Bg4 {[%clk 0:04:52.4]} 8. Be3 {[%clk 0:04:46.5]}
8... Bxf3 {[%clk 0:04:50]} 9. gxf3 {[%clk 0:04:43.4]} 9... e6 {[%clk 0:04:49]}
10. Nc3 {[%clk 0:04:41.1]} 10... Qd7 {[%clk 0:04:48.2]} 11. Qd2 {[%clk
0:04:36.6]} 11... O-O-O {[%clk 0:04:47]} 12. O-O-O {[%clk 0:04:35.5]} 12... f6
{[%clk 0:04:44.6]} 13. f4 {[%clk 0:04:32.3]} 13... Bb4 {[%clk 0:04:39.4]} 14. a3
{[%clk 0:04:28.3]} 14... Be7 {[%clk 0:04:33.7]} 15. Bg2 {[%clk 0:04:23.9]} 15...
Na5 {[%clk 0:04:30.6]} 16. Qc2 {[%clk 0:03:56.4]} 16... Naxc4 {[%clk 0:04:29.2]}
17. Kb1 {[%clk 0:03:41.2]} 17... Nxe3 {[%clk 0:04:27.2]} 18. Qe2 {[%clk
0:03:31.2]} 18... Nxd1 {[%clk 0:04:22.5]} 19. Rxd1 {[%clk 0:03:29.2]} 19... fxe5
{[%clk 0:04:21.6]} 20. dxe5 {[%clk 0:03:26.9]} 20... Nd5 {[%clk 0:04:15.1]} 21.
Nxd5 {[%clk 0:03:24.6]} 21... exd5 {[%clk 0:04:14.2]} 22. Bf3 {[%clk 0:03:19.1]}
22... Qf5+ {[%clk 0:04:12.1]} 23. Ka1 {[%clk 0:03:17.6]} 23... Qxf4 {[%clk
0:04:10.1]} 24. Bxd5 {[%clk 0:03:08.1]} 24... c6 {[%clk 0:04:03.5]} 25. Be6+
{[%clk 0:02:48.5]} 25... Kb8 {[%clk 0:04:02.5]} 26. Rf1 {[%clk 0:02:47]} 26...
Qh6 {[%clk 0:03:59.8]} 27. Rf7 {[%clk 0:02:22.2]} 27... Qxe6 {[%clk 0:03:57.2]}
0-1

[Event "Live Chess"]
[Site "Chess.com"]
[Date "2024.06.02"]
[Round "-"]
[White "wadsy27"]
[Black "gobbles19"]
[Result "1-0"]
[WhiteElo "2588"]
[BlackElo "2264"]
[TimeControl "300"]
[EndTime "17:36:55 PDT"]
[Termination "wadsy27 won by resignation"]

1. d4 {[%clk 0:04:53.6]} 1... Nf6 {[%clk 0:04:57.9]} 2. c4 {[%clk 0:04:52.6]}
2... e6 {[%clk 0:04:57]} 3. Nf3 {[%clk 0:04:51.7]} 3... c5 {[%clk 0:04:56.2]} 4.
d5 {[%clk 0:04:50.5]} 4... exd5 {[%clk 0:04:55.5]} 5. cxd5 {[%clk 0:04:49.6]}
5... d6 {[%clk 0:04:55.1]} 6. Nc3 {[%clk 0:04:47.2]} 6... g6 {[%clk 0:04:54.6]}
7. Bf4 {[%clk 0:04:45]} 7... Bg7 {[%clk 0:04:51.7]} 8. h3 {[%clk 0:04:43]} 8...
O-O {[%clk 0:04:50.3]} 9. e3 {[%clk 0:04:42.2]} 9... a6 {[%clk 0:04:45.7]} 10.
a4 {[%clk 0:04:40.8]} 10... Qc7 {[%clk 0:04:44.8]} 11. Nd2 {[%clk 0:04:34]}
11... Nh5 {[%clk 0:04:36.1]} 12. Bh2 {[%clk 0:04:32.7]} 12... Re8 {[%clk
0:04:25.8]} 13. Be2 {[%clk 0:04:31.1]} 13... Nf6 {[%clk 0:04:24.3]} 14. Nc4
{[%clk 0:04:27.4]} 14... Bf8 {[%clk 0:04:22.8]} 15. O-O {[%clk 0:04:26]} 15...
Nbd7 {[%clk 0:04:22]} 16. a5 {[%clk 0:04:20]} 16... b5 {[%clk 0:04:16.8]} 17.
axb6 {[%clk 0:04:18.6]} 17... Nxb6 {[%clk 0:04:16.1]} 18. Na5 {[%clk 0:04:14.6]}
18... Bd7 {[%clk 0:04:09.2]} 19. Bf3 {[%clk 0:03:59.9]} 19... Bg7 {[%clk
0:03:39.2]} 20. e4 {[%clk 0:03:37.9]} 20... Bb5 {[%clk 0:03:24.8]} 21. Nxb5
{[%clk 0:03:30.4]} 21... axb5 {[%clk 0:03:24.7]} 22. e5 {[%clk 0:03:28.8]} 22...
dxe5 {[%clk 0:03:01.7]} 23. d6 {[%clk 0:03:26.4]} 23... Qd7 {[%clk 0:02:59.2]}
24. Bc6 {[%clk 0:03:16.7]} 24... Qf5 {[%clk 0:02:53.6]} 25. Bxa8 {[%clk
0:03:12.6]} 25... Rxa8 {[%clk 0:02:52.1]} 26. Nc6 {[%clk 0:03:11.5]} 1-0

[Event "Live Chess"]
[Site "Chess.com"]
[Date "2024.06.02"]
[Round "-"]
[White "Frankie_Badacsonyi"]
[Black "LanceMaster23"]
[Result "1-0"]
[WhiteElo "2407"]
[BlackElo "1844"]
[TimeControl "300"]
[EndTime "17:37:10 PDT"]
[Termination "Frankie_Badacsonyi won on time"]

1. e4 {[%clk 0:04:58.5]} 1... c6 {[%clk 0:04:58.3]} 2. Nf3 {[%clk 0:04:57]} 2...
d5 {[%clk 0:04:57.7]} 3. Nc3 {[%clk 0:04:56.6]} 3... dxe4 {[%clk 0:04:56.5]} 4.
Nxe4 {[%clk 0:04:56.5]} 4... Nf6 {[%clk 0:04:55.9]} 5. Qe2 {[%clk 0:04:55.2]}
5... Nxe4 {[%clk 0:04:54.5]} 6. Qxe4 {[%clk 0:04:55.1]} 6... Nd7 {[%clk
0:04:53.3]} 7. Bc4 {[%clk 0:04:52.2]} 7... Nf6 {[%clk 0:04:50.1]} 8. Ne5 {[%clk
0:04:50.7]} 8... e6 {[%clk 0:04:49.2]} 9. Qe2 {[%clk 0:04:49.7]} 9... Be7 {[%clk
0:04:41.7]} 10. O-O {[%clk 0:04:48.5]} 10... O-O {[%clk 0:04:40.5]} 11. c3
{[%clk 0:04:47.8]} 11... Qc7 {[%clk 0:04:37.8]} 12. d4 {[%clk 0:04:46.7]} 12...
b5 {[%clk 0:04:28.2]} 13. Bb3 {[%clk 0:04:45.3]} 13... a6 {[%clk 0:04:25.2]} 14.
Bf4 {[%clk 0:04:44.2]} 14... Bd6 {[%clk 0:04:19.3]} 15. Bg3 {[%clk 0:04:43.4]}
15... Nd7 {[%clk 0:04:12.2]} 16. f4 {[%clk 0:04:27.3]} 16... c5 {[%clk
0:03:54.7]} 17. dxc5 {[%clk 0:03:53.1]} 17... Nxc5 {[%clk 0:03:52.3]} 18. Bc2
{[%clk 0:03:50.1]} 18... f5 {[%clk 0:03:38.9]} 19. Rad1 {[%clk 0:03:45.2]} 19...
Bb7 {[%clk 0:03:36.9]} 20. Bb3 {[%clk 0:03:20.2]} 20... Nxb3 {[%clk 0:03:21.5]}
21. axb3 {[%clk 0:03:20.1]} 21... Rad8 {[%clk 0:02:57.9]} 22. Bh4 {[%clk
0:03:14.8]} 22... Be7 {[%clk 0:02:15.5]} 23. Bxe7 {[%clk 0:03:12.6]} 23... Qxe7
{[%clk 0:02:15.4]} 24. b4 {[%clk 0:03:04.8]} 24... Be4 {[%clk 0:02:01.7]} 25.
Rxd8 {[%clk 0:03:02]} 25... Rxd8 {[%clk 0:01:59.7]} 26. Rd1 {[%clk 0:02:59.7]}
26... Qa7+ {[%clk 0:01:36.9]} 27. Kh1 {[%clk 0:02:45.4]} 27... Rd5 {[%clk
0:01:27.1]} 28. Rxd5 {[%clk 0:02:41.7]} 28... exd5 {[%clk 0:01:18.5]} 29. h3
{[%clk 0:02:40]} 29... Qe7 {[%clk 0:01:11.8]} 30. Kh2 {[%clk 0:02:27.6]} 30...
Qh4 {[%clk 0:01:09.7]} 31. g3 {[%clk 0:02:22.7]} 31... Qd8 {[%clk 0:01:04.2]}
32. Qe3 {[%clk 0:02:21.4]} 32... Qc7 {[%clk 0:01:01.5]} 33. Qd4 {[%clk
0:02:15.1]} 33... h6 {[%clk 0:00:39.7]} 34. Qc5 {[%clk 0:01:58.9]} 34... Qb7
{[%clk 0:00:30.2]} 35. Qd4 {[%clk 0:01:45]} 35... Kh7 {[%clk 0:00:28.6]} 36. Qc5
{[%clk 0:01:37.1]} 36... g5 {[%clk 0:00:27.1]} 37. Qf8 {[%clk 0:01:25.7]} 37...
Qa7 {[%clk 0:00:23.3]} 38. Qf7+ {[%clk 0:01:19.1]} 38... Qxf7 {[%clk 0:00:22.9]}
39. Nxf7 {[%clk 0:01:19]} 39... Kg7 {[%clk 0:00:20.6]} 40. Ne5 {[%clk
0:01:18.2]} 40... Kf6 {[%clk 0:00:18.9]} 41. Kg1 {[%clk 0:01:15.7]} 41... Ke6
{[%clk 0:00:17.2]} 42. Kf2 {[%clk 0:01:14.5]} 42... d4 {[%clk 0:00:13.7]} 43.
cxd4 {[%clk 0:01:11.2]} 43... Kd5 {[%clk 0:00:13]} 44. Ke3 {[%clk 0:01:10.2]}
44... Bg2 {[%clk 0:00:10.4]} 45. h4 {[%clk 0:01:09.3]} 45... gxh4 {[%clk
0:00:09.9]} 46. gxh4 {[%clk 0:01:08.4]} 46... Bf1 {[%clk 0:00:06.6]} 47. b3
{[%clk 0:01:06.7]} 47... Bg2 {[%clk 0:00:02.2]} 48. Nd3 {[%clk 0:01:01.4]} 48...
Be4 {[%clk 0:00:01.4]} 49. Nc5 {[%clk 0:01:00.6]} 49... Bc2 {[%clk 0:00:00.1]}
50. Nxa6 {[%clk 0:00:51.4]} 1-0

[Event "Live Chess"]
[Site "Chess.com"]
[Date "2024.06.02"]
[Round "-"]
[White "educatedlad"]
[Black "RockTroll"]
[Result "0-1"]
[WhiteElo "1744"]
[BlackElo "2207"]
[TimeControl "300"]
[EndTime "17:37:10 PDT"]
[Termination "RockTroll won by resignation"]

1. d4 {[%clk 0:04:59.2]} 1... Nf6 {[%clk 0:04:58.7]} 2. Bg5 {[%clk 0:04:58.8]}
2... g6 {[%clk 0:04:57.8]} 3. Bxf6 {[%clk 0:04:58.1]} 3... exf6 {[%clk
0:04:57.7]} 4. c4 {[%clk 0:04:57.3]} 4... d5 {[%clk 0:04:57.1]} 5. cxd5 {[%clk
0:04:56.1]} 5... Qxd5 {[%clk 0:04:57]} 6. Nc3 {[%clk 0:04:55.3]} 6... Qd8 {[%clk
0:04:56.6]} 7. g3 {[%clk 0:04:54.6]} 7... c5 {[%clk 0:04:55.9]} 8. dxc5 {[%clk
0:04:53]} 8... Qxd1+ {[%clk 0:04:54]} 9. Rxd1 {[%clk 0:04:52.9]} 9... Bxc5
{[%clk 0:04:53.5]} 10. Bh3 {[%clk 0:04:52.2]} 10... f5 {[%clk 0:04:52.2]} 11. e3
{[%clk 0:04:49.1]} 11... Nc6 {[%clk 0:04:43.6]} 12. Nd5 {[%clk 0:04:47.5]} 12...
O-O {[%clk 0:04:41.6]} 13. Nc7 {[%clk 0:04:43.3]} 13... Rb8 {[%clk 0:04:40.4]}
14. Bg2 {[%clk 0:04:39.3]} 14... Rd8 {[%clk 0:04:24.7]} 15. Bxc6 {[%clk
0:04:32.1]} 15... Rxd1+ {[%clk 0:04:22.9]} 16. Kxd1 {[%clk 0:04:30.8]} 16...
bxc6 {[%clk 0:04:22.8]} 17. b3 {[%clk 0:04:28.8]} 17... Kf8 {[%clk 0:04:02.2]}
18. Ne2 {[%clk 0:04:16.3]} 18... Ke7 {[%clk 0:03:59.5]} 19. Nc3 {[%clk
0:04:12.7]} 19... Kd7 {[%clk 0:03:55.7]} 20. Na4 {[%clk 0:04:08.8]} 20... Bd6
{[%clk 0:03:48.9]} 21. Na6 {[%clk 0:04:02]} 0-1